bitfinex/quotes_ETHUSD_20230119
["timestamp","ask_amount","ask_price","bid_price","bid_amount"]
[1674158992256,0.00441254,1555.5,1555.2,0.65825256]
[1674158992470,9.2333,1555.7,1555.2,2.14325256]
[1674158992782,15.66594254,1555.7,1555.3,7.91453]
[1674158993029,15.66594254,1555.7,1555.3,9.22847864]
[1674158993552,16.14804254,1555.7,1555.3,9.22847864]
[1674158993762,15.66594254,1555.7,1555.3,10.72847864]
[1674158994452,15.66594254,1555.7,1555.3,12.40302189]
[1674158994656,15.66594254,1555.7,1555.4,0.65825256]
[1674158995317,6.43264254,1555.7,1555.4,2.15825256]
[1674158995543,6.43264254,1555.7,1555.4,0.65825256]
[1674158996652,6.43264254,1555.7,1555.4,2.15825256]
[1674158996863,0.00441254,1555.7,1555.5,0.21582526]
[1674158997122,0.48651254,1555.8,1555.5,8.12556526]
[1674158997286,9.35181254,1555.9,1555.5,8.22156526]
[1674158997654,9.29181254,1555.9,1555.5,8.22156526]
[1674158998012,9.29181254,1555.9,1555.6,0.82215653]
[1674158998013,8.80971254,1555.9,1555.6,0.82215653]
[1674158998767,0.00441254,1555.9,1555.6,0.82215653]
[1674158998978,26.98403308,1556.0,1555.6,0.82215653]
[1674158999203,30.27578067,1556.0,1555.6,0.82215653]
[1674158999417,27.27578067,1556.0,1555.6,0.82215653]
[1674158999680,0.67250053,1555.9,1555.6,0.82215653]
[1674158999846,0.67250053,1555.9,1555.5,8.22156526]
[1674159000051,7.09965053,1555.9,1555.5,6.74056526]
[1674159000267,7.10406307,1555.9,1555.5,6.74056526]
[1674159000948,6.43156254,1555.9,1555.5,6.74056526]
[1674159001324,7.10406307,1555.9,1555.5,6.74056526]
[1674159001997,7.10406307,1555.9,1555.5,8.24056526]
[1674159002221,6.43156254,1555.9,1555.6,0.82405653]
[1674159002681,13.53121307,1555.9,1555.5,0.096]
[1674159002888,13.53121307,1555.9,1555.4,6.52494]
[1674159003489,13.53121307,1555.9,1555.4,8.02494]
[1674159003627,12.85871254,1555.9,1555.4,8.02494]
[1674159003993,12.85871254,1555.9,1555.5,1.5]
[1674159005051,12.85871254,1555.9,1555.4,6.52494]
[1674159005200,13.53121307,1555.9,1555.4,6.52494]
[1674159005411,1.35312131,1555.8,1555.4,6.52494]
[1674159005640,17.5001289,1555.8,1555.4,0.096]
[1674159005886,17.50454144,1555.8,1555.3,8.0105]
[1674159006047,17.50454144,1555.8,1555.4,1.5]
[1674159006716,17.50454144,1555.8,1555.3,9.5105]
[1674159008108,17.50454144,1555.8,1555.3,8.0105]
[1674159008472,18.17704197,1555.8,1555.3,6.5255]
[1674159010247,17.50454144,1555.8,1555.3,6.5255]
[1674159013140,17.50454144,1555.8,1555.3,8.0255]
[1674159014384,17.50454144,1555.8,1555.3,0.096]
[1674159014626,18.17704197,1555.8,1555.3,4.5]
[1674159014788,8.24211661,1555.7,1555.2,24.46982]
[1674159015006,8.24652915,1555.7,1555.2,24.46982]
[1674159018297,6.43241254,1555.7,1555.2,26.14442475]
[1674159018480,0.00441254,1555.7,1555.5,1.479]
[1674159018725,15.61964254,1555.8,1555.5,2.979]
[1674159019153,15.61964254,1555.8,1555.5,1.479]
[1674159019477,6.43204254,1555.8,1555.5,1.479]
[1674159019627,6.43204254,1555.8,1555.5,2.279411]
[1674159019832,6.43204254,1555.8,1555.5,3.779411]
[1674159020311,0.00441254,1555.8,1555.6,1.485]
[1674159020464,0.00441254,1555.9,1555.6,1.485]
[1674159020677,25.80810001,1556.0,1555.7,0.1485]
[1674159020678,25.75251255,1556.0,1555.7,0.1485]
[1674159021249,25.75251255,1556.0,1555.6,1.485]
[1674159022315,15.78161255,1556.0,1555.6,1.485]
[1674159022477,8.87251255,1556.0,1555.6,1.485]
[1674159022690,15.29932255,1556.0,1555.6,1.485]
[1674159022900,15.97182308,1556.0,1555.6,1.485]
[1674159023114,15.29932255,1556.0,1555.7,0.1485]
[1674159023994,15.29932255,1556.0,1555.7,1.6485]
[1674159024156,15.29932255,1556.0,1555.7,3.1335]
[1674159024948,6.43122255,1556.0,1555.7,1.6335]
[1674159025140,12.85803255,1556.0,1555.7,0.1485]
[1674159026416,13.53053308,1556.0,1555.7,0.1485]
[1674159026942,13.53053308,1556.0,1555.5,11.669711]
[1674159027152,1.15460053,1555.9,1555.5,9.3843]
[1674159027363,12.85466,1555.9,1555.5,9.3843]
[1674159027523,12.85907254,1555.9,1555.5,9.3843]
[1674159027883,11.43748111,1555.9,1555.5,9.3843]
[1674159028267,12.10998164,1555.9,1555.5,9.3843]
[1674159029828,13.11878427,1555.9,1555.5,9.3843]
[1674159030281,7.10018053,1555.8,1555.5,9.3843]
[1674159030517,6.43209254,1555.8,1555.5,9.3843]
[1674159030681,8.39273897,1555.8,1555.5,9.3843]
[1674159031320,8.39273897,1555.8,1555.7,0.0336]
[1674159032177,9.0652395,1555.8,1555.7,0.0336]
[1674159032720,20.10201496,1555.8,1555.7,0.0336]
[1674159032910,20.58547354,1555.8,1555.7,0.0336]
[1674159033124,20.10336612,1555.8,1555.7,0.0336]
[1674159033290,19.09456349,1555.8,1555.7,0.0336]
[1674159033650,20.10336612,1555.8,1555.7,0.0336]
[1674159033836,19.09456349,1555.8,1555.7,0.0336]
[1674159034042,19.09615095,1555.8,1555.7,0.0336]
[1674159034507,20.10495358,1555.8,1555.7,0.0336]
[1674159035142,19.43110189,1555.8,1555.7,0.0336]
[1674159035936,20.10493741,1555.8,1555.7,0.0336]
[1674159036152,19.43110189,1555.8,1555.7,0.0336]
[1674159036364,20.10489994,1555.8,1555.7,0.0336]
[1674159036591,20.10490439,1555.8,1555.7,0.0336]
[1674159037187,21.5894994,1555.8,1555.7,0.0336]
[1674159037446,25.0715994,1555.8,1555.7,0.0336]
[1674159037769,25.3015994,1555.8,1555.7,0.0336]
[1674159038443,24.96665397,1555.8,1555.7,0.0336]
[1674159038656,26.64885411,1555.8,1555.7,0.0336]
[1674159038912,25.3015994,1555.8,1555.7,0.0336]
[1674159039771,25.3015994,1555.8,1555.1,1.55672564]
[1674159039969,19.95975764,1555.6,1555.1,1.55672564]
[1674159040122,23.25750523,1555.6,1555.1,1.55672564]
[1674159040538,23.25750523,1555.6,1555.1,0.05672564]
[1674159040809,31.65740523,1555.6,1555.1,0.05672564]
[1674159041383,0.67362764,1555.5,1555.1,0.05672564]
[1674159041642,12.9226547,1555.4,1555.1,0.05672564]
[1674159041820,12.9286547,1555.4,1555.1,0.05672564]
[1674159042170,12.86488,1555.4,1555.1,0.05672564]
[1674159042816,3.29174759,1555.3,1555.1,0.05672564]
[1674159042966,12.86008,1555.2,1555.1,0.03972564]
[1674159043293,12.86608,1555.2,1555.1,0.03972564]
[1674159043502,16.14435976,1555.2,1555.1,0.03972564]
[1674159043861,19.43610735,1555.2,1555.1,0.03972564]
[1674159046639,19.74404848,1555.2,1555.1,0.03972564]
[1674159046882,21.22904848,1555.2,1555.1,0.03972564]
[1674159049727,25.70804848,1555.2,1555.1,0.03972564]
[1674159049899,26.19034848,1555.2,1555.1,0.03972564]
[1674159050687,24.93534848,1555.2,1555.1,0.03972564]
[1674159051680,21.93534848,1555.2,1555.1,0.03972564]
[1674159051915,19.74404848,1555.2,1555.1,0.03972564]
[1674159057609,19.75012448,1555.2,1555.1,0.03972564]
[1674159058942,1.5,1555.1,1554.8,0.05532169]
[1674159059159,5.00674759,1555.0,1554.8,0.05532169]
[1674159059400,22.58558759,1554.9,1554.8,0.05532169]
[1674159059619,22.59158759,1554.9,1554.8,0.05532169]
[1674159061479,19.29984,1554.9,1554.8,0.05532169]
[1674159061713,12.86856,1554.9,1554.8,0.05532169]
[1674159064231,12.19842614,1554.9,1554.8,0.05532169]
[1674159065458,19.15586534,1554.9,1554.8,0.05532169]
[1674159069692,15.49017373,1554.9,1554.8,0.05532169]
[1674159070555,12.19842614,1554.9,1554.8,0.05532169]
[1674159071336,15.49017373,1554.9,1554.8,0.05532169]
[1674159073511,16.97517373,1554.9,1554.8,0.05532169]
[1674159073678,20.20517373,1554.9,1554.8,0.05532169]
[1674159073888,26.25272687,1554.9,1554.8,0.05532169]
[1674159074313,26.02272687,1554.9,1554.8,0.05532169]
[1674159074734,25.54032687,1554.9,1554.8,0.05532169]
[1674159074963,25.77032687,1554.9,1554.8,0.05532169]
[1674159075354,26.44395451,1554.9,1554.8,0.05532169]
[1674159075568,25.77032687,1554.9,1554.8,0.05532169]
[1674159075797,27.92895451,1554.9,1554.8,0.05532169]
[1674159075999,28.74816833,1554.9,1554.8,0.05532169]
[1674159076391,1.5,1554.8,1554.7,0.06013009]
[1674159076651,28.88877859,1554.8,1554.7,0.06013009]
[1674159076815,28.89477859,1554.8,1554.7,0.06013009]
[1674159077048,28.87913735,1554.8,1554.7,0.06013009]
[1674159077246,33.10053212,1554.8,1554.7,0.06013009]
[1674159077502,17.67425321,1554.7,1554.6,0.03958955]
[1674159077724,35.08653896,1554.7,1554.6,0.03958955]
[1674159077884,35.72836566,1554.7,1554.6,0.03958955]
[1674159078238,35.07143323,1554.7,1554.6,0.03958955]
[1674159078652,35.74347139,1554.7,1554.6,0.03958955]
[1674159079597,33.57143323,1554.7,1554.6,0.03958955]
[1674159079989,32.9145008,1554.7,1554.6,0.03958955]
[1674159080396,32.6845008,1554.7,1554.6,0.03958955]
[1674159081928,32.9145008,1554.7,1554.6,0.03958955]
[1674159083593,33.58653896,1554.7,1554.6,0.03958955]
[1674159084879,34.5945962,1554.7,1554.6,0.03958955]
[1674159085237,33.58653896,1554.7,1554.6,0.03958955]
[1674159085472,43.56713896,1554.7,1554.6,0.03958955]
[1674159085998,43.56713896,1554.7,1554.6,9.55e-06]
[1674159086221,49.41763896,1554.7,1554.5,0.04221483]
[1674159086432,15.81996149,1554.6,1554.5,0.04221483]
[1674159086644,28.69100149,1554.6,1554.5,0.04221483]
[1674159086855,28.69100149,1554.6,1554.5,4.83e-06]
[1674159087068,33.24603965,1554.6,1554.4,0.05532169]
[1674159087257,7.64584774,1554.5,1554.4,0.05532169]
[1674159087616,7.64584774,1554.5,1554.4,1.69e-06]
[1674159087617,23.74770774,1554.5,1554.4,1.69e-06]
[1674159087832,24.23020774,1554.5,1554.4,1.69e-06]
[1674159087976,24.23020774,1554.5,1554.0,0.06717323]
[1674159088186,12.40126836,1554.4,1554.0,0.06717323]
[1674159088501,34.16066836,1554.4,1554.0,0.06717323]
[1674159088961,33.67816836,1554.4,1554.0,0.06717323]
[1674159089288,33.67816836,1554.4,1554.3,5.59e-06]
[1674159089498,33.67816836,1554.4,1554.0,0.06717323]
[1674159089709,9.64456443,1554.3,1554.0,0.06717323]
[1674159089923,25.74808443,1554.3,1554.0,0.06717323]
[1674159092044,26.23068443,1554.3,1554.0,0.06717323]
[1674159092363,26.21568443,1554.3,1554.0,0.06717323]
[1674159092579,24.24808443,1554.3,1554.0,0.06717323]
[1674159095425,24.14808443,1554.3,1554.0,0.06717323]
[1674159095634,24.14808443,1554.3,1554.2,9.92e-06]
[1674159096653,28.68801686,1554.3,1554.2,9.92e-06]
[1674159097060,30.16701686,1554.3,1554.2,9.92e-06]
[1674159097245,29.93701686,1554.3,1554.2,9.92e-06]
[1674159097457,19.06526759,1554.3,1554.2,9.92e-06]
[1674159099414,19.061677,1554.3,1554.2,9.92e-06]
[1674159100233,19.067753,1554.3,1554.2,9.92e-06]
[1674159102525,19.297753,1554.3,1554.2,9.92e-06]
[1674159102990,19.95468543,1554.3,1554.2,9.92e-06]
[1674159103179,25.71193779,1554.3,1554.2,9.92e-06]
[1674159105323,25.05500536,1554.3,1554.2,9.92e-06]
[1674159110325,24.82500536,1554.3,1554.2,9.92e-06]
[1674159112778,25.49704352,1554.3,1554.2,9.92e-06]
[1674159113352,26.50510076,1554.3,1554.2,9.92e-06]
[1674159114406,25.49704352,1554.3,1554.2,9.92e-06]
[1674159115357,19.061677,1554.3,1554.2,9.92e-06]
[1674159115597,15.87352,1554.3,1554.2,9.92e-06]
[1674159115832,16.54555816,1554.3,1554.2,9.92e-06]
[1674159115974,15.87352,1554.3,1554.2,9.92e-06]
[1674159116400,16.54555816,1554.3,1554.2,9.92e-06]
[1674159118221,17.5536154,1554.3,1554.2,9.92e-06]
[1674159118643,20.73637247,1554.3,1554.2,9.92e-06]
[1674159118829,24.02812006,1554.3,1554.2,9.92e-06]
[1674159119183,23.3560819,1554.3,1554.2,9.92e-06]
[1674159119398,32.1232819,1554.3,1554.2,9.92e-06]
[1674159121345,33.47053717,1554.3,1554.2,9.92e-06]
[1674159121917,12.86918,1554.1,1554.0,0.06717323]
[1674159122128,12.87518,1554.1,1554.0,0.06717323]
[1674159123386,6.44059,1554.1,1554.0,1.70039055]
[1674159123607,6.44059,1554.1,1554.0,1.54517323]
[1674159125705,6.44059,1554.1,1554.0,0.06717323]
[1674159125920,13.54959757,1554.1,1554.0,0.06717323]
[1674159126651,14.55765481,1554.1,1554.0,0.06717323]
[1674159126805,13.54959757,1554.1,1554.0,0.06717323]
[1674159127170,16.6973907,1554.1,1554.0,0.06717323]
[1674159127386,19.31472072,1554.1,1554.0,0.06717323]
[1674159129849,19.65391875,1554.1,1554.0,0.06717323]
[1674159130510,19.31908205,1554.1,1554.0,0.06717323]
[1674159131814,20.66633732,1554.1,1554.0,0.06717323]
[1674159132369,19.65391875,1554.1,1554.0,0.06717323]
[1674159132639,20.66637548,1554.1,1554.0,0.06717323]
[1674159132833,19.31912021,1554.1,1554.0,0.06717323]
[1674159133049,7.45304673,1554.1,1554.0,0.06717323]
[1674159133232,7.11547767,1554.1,1554.0,0.06717323]
[1674159133589,13.55006767,1554.1,1554.0,0.06717323]
[1674159134323,13.55006767,1554.1,1554.0,1.53917323]
[1674159134324,6.44059,1554.1,1554.0,1.53917323]
[1674159136556,7.12139375,1554.2,1554.1,1.479]
[1674159137090,7.12139375,1554.2,1554.0,1.69109055]
[1674159137400,7.12139375,1554.2,1554.0,1.53717323]
[1674159137802,8.13385048,1554.2,1554.0,1.53717323]
[1674159138338,0.67488767,1554.1,1554.0,0.06717323]
[1674159139818,13.54406767,1554.1,1554.0,0.06717323]
[1674159140125,19.08284384,1554.1,1554.0,0.06717323]
[1674159140556,7.11547767,1554.1,1554.0,0.06717323]
[1674159140716,6.44059,1554.1,1554.0,0.06717323]
[1674159144489,8.13385048,1554.2,1554.0,0.06717323]
[1674159144727,0.67488767,1554.1,1554.0,0.0651352]
[1674159146640,5.42946931,1554.1,1554.0,0.0651352]
[1674159146855,9.59076845,1554.1,1554.0,0.0651352]
[1674159147899,8.1279344,1554.1,1554.0,0.0651352]
[1674159148112,7.11547767,1554.1,1554.0,0.0651352]
[1674159148800,0.68088767,1554.1,1554.0,0.0651352]
[1674159149006,0.67488767,1554.1,1554.0,1.5501352]
[1674159149477,0.67488767,1554.1,1554.0,3.0351352]
[1674159149694,0.00606608,1554.2,1554.0,3.33864872]
[1674159149844,0.00606608,1554.2,1554.1,1.485]
[1674159150061,0.00606608,1554.2,1554.1,2.985]
[1674159150778,1e-08,1554.2,1554.1,9.41959]
[1674159150940,1e-08,1554.2,1554.1,9.51559]
[1674159151328,1e-08,1554.2,1554.1,8.01559]
[1674159151801,6.98157,1554.5,1554.1,8.01559]
[1674159151802,0.74088767,1554.5,1554.2,0.00199999]
[1674159152016,0.67488767,1554.5,1554.3,1.485]
[1674159152161,0.67488767,1554.4,1554.3,0.1487]
[1674159152367,0.066,1554.5,1554.3,3.0967]
[1674159152683,1.01245673,1554.7,1554.3,1.6267]
[1674159152684,1.6873444,1554.7,1554.3,1.6267]
[1674159152895,0.67488767,1554.7,1554.6,1.485]
[1674159153152,1.7533444,1554.8,1554.6,1.485]
[1674159153467,1.6873444,1554.8,1554.6,1.485]
[1674159154056,23.08441527,1554.9,1554.6,1.485]
[1674159154057,23.4245044,1554.9,1554.6,1.485]
[1674159154256,0.68088767,1554.9,1554.7,1.485]
[1674159154462,0.67488767,1554.9,1554.8,1.479]
[1674159155156,1.81217593,1555.0,1554.8,1.479]
[1674159155309,0.7997192,1555.0,1554.8,1.479]
[1674159155727,0.12483153,1555.0,1554.8,1.479]
[1674159155974,6.82897273,1555.0,1554.6,1.581]
[1674159156209,0.67488767,1554.9,1554.6,1.485]
[1674159156780,17.01964679,1555.0,1554.6,1.485]
[1674159157036,16.95964679,1555.0,1554.6,2.43637]
[1674159157265,0.13083153,1555.0,1554.6,4.87401579]
[1674159157571,0.12483153,1555.0,1554.9,2.964]
[1674159157722,0.12483153,1555.0,1554.9,4.464]
[1674159158838,0.12483153,1555.0,1554.9,10.89528]
[1674159159048,0.12483153,1555.0,1554.9,17.42256]
[1674159159357,0.12483153,1555.0,1554.9,18.90756]
[1674159160138,0.12483153,1555.0,1554.9,22.19930759]
[1674159160573,0.12483153,1555.0,1554.9,22.42930759]
[1674159160994,0.12483153,1555.0,1554.9,20.95030759]
[1674159161628,0.12483153,1555.0,1554.9,22.42630759]
[1674159163190,0.12483153,1555.0,1554.9,22.42430759]
[1674159163399,0.12483153,1555.0,1554.9,25.42630759]
[1674159164556,0.12483153,1555.0,1554.9,21.90456]
[1674159164824,0.12483153,1555.0,1554.9,20.41956]
[1674159166341,0.12483153,1555.0,1554.9,23.71130759]
[1674159166757,0.12483153,1555.0,1554.9,25.42630759]
[1674159166988,0.1336462,1555.1,1555.0,1.5]
[1674159167291,0.1336462,1555.1,1555.0,35.34166759]
[1674159167498,0.1336462,1555.1,1555.0,35.43766759]
[1674159167704,0.1336462,1555.1,1555.0,25.42346759]
[1674159167915,0.1336462,1555.1,1555.0,35.43766759]
[1674159168125,0.1336462,1555.1,1555.0,33.95266759]
[1674159168335,0.1336462,1555.1,1555.0,23.93846759]
[1674159168591,0.1336462,1555.1,1555.0,33.95266759]
[1674159168974,0.1336462,1555.1,1555.0,23.93846759]
[1674159169184,0.1336462,1555.1,1555.0,33.95266759]
[1674159169666,0.1336462,1555.1,1555.0,23.93846759]
[1674159169805,0.1336462,1555.1,1555.0,33.95266759]
[1674159170244,0.1336462,1555.1,1555.0,23.93846759]
[1674159170474,0.1336462,1555.1,1555.0,33.82216759]
[1674159170758,0.1336462,1555.1,1555.0,23.93846759]
[1674159171816,0.14073183,1555.7,1555.1,1.5]
[1674159172068,0.14073183,1555.7,1555.4,1.485]
[1674159172293,0.14073183,1555.7,1555.4,7.91414]
[1674159172591,0.14073183,1555.7,1555.4,8.01014]
[1674159172825,1.13979817,1555.7,1555.4,0.096]
[1674159172955,1.13979817,1555.7,1555.3,6.52544]
[1674159173503,1.13979817,1555.7,1555.3,8.02544]
[1674159174388,0.14073183,1555.7,1555.3,8.00444]
[1674159174774,0.14073183,1555.7,1555.3,9.50444]
[1674159176849,0.13714424,1555.7,1555.4,1.485]
[1674159177063,0.13714424,1555.7,1555.5,1.5]
[1674159177529,0.13714424,1555.7,1555.4,10.461154]
[1674159177699,0.13714424,1555.7,1555.4,8.961154]
[1674159178321,0.13714424,1555.7,1555.4,10.461154]
[1674159178659,0.13714424,1555.7,1555.4,8.961154]
[1674159178846,0.13714424,1555.7,1555.4,0.096]
[1674159179055,0.13714424,1555.7,1555.3,14.42606]
[1674159179904,0.13714424,1555.7,1555.3,7.99644]
[1674159180599,0.13714424,1555.7,1555.3,9.49644]
[1674159180901,0.13714424,1555.7,1555.3,8.02544]
[1674159181899,0.13714424,1555.7,1555.3,6.52544]
[1674159183732,0.13714424,1555.7,1555.4,1.5]
[1674159184128,0.13714424,1555.7,1555.3,8.02544]
[1674159184336,0.13714424,1555.7,1555.4,3.29174759]
[1674159184584,0.13714424,1555.7,1555.5,14.3366]
[1674159184749,0.13714424,1555.7,1555.5,14.4326]
[1674159185580,0.13392442,1555.7,1555.5,14.4326]
[1674159187423,0.13392442,1555.7,1555.5,12.9536]
[1674159187785,0.006,1555.8,1555.5,6.5248]
[1674159188059,13.92206596,1556.0,1555.5,16.5678]
[1674159188225,1.2431066,1555.9,1555.5,16.5678]
[1674159189418,6.42718,1555.9,1555.5,16.5678]
[1674159189572,6.43318,1555.9,1555.5,16.5678]
[1674159191152,3.29174759,1555.8,1555.5,0.096]
[1674159191357,16.14718759,1555.8,1555.3,17.97724]
[1674159191599,16.15318759,1555.8,1555.4,1.5]
[1674159192779,16.15318759,1555.8,1555.3,17.97724]
[1674159192933,16.63528759,1555.8,1555.3,17.97724]
[1674159193144,16.15318759,1555.8,1555.3,17.97724]
[1674159193685,17.63818759,1555.8,1555.3,17.97724]
[1674159193945,1.76381876,1555.7,1555.3,17.97724]
[1674159194127,1.76381876,1555.7,1555.3,0.096]
[1674159194128,7.89947,1555.6,1555.3,0.096]
[1674159194455,7.89947,1555.6,1555.1,11.4199]
[1674159194456,22.03234,1555.6,1555.1,11.4199]
[1674159194620,22.03234,1555.6,1555.2,2.64199]
[1674159194823,22.03234,1555.6,1555.1,11.5159]
[1674159195591,22.03234,1555.6,1555.2,1.5]
[1674159196401,20.56134,1555.6,1555.2,1.5]
[1674159196843,7.7044,1555.6,1555.2,7.93004]
[1674159197183,7.7044,1555.6,1555.3,0.793004]
[1674159197973,0.006,1555.6,1555.3,0.793004]
[1674159198184,7.59101767,1555.7,1555.3,0.793004]
[1674159198730,8.6034744,1555.7,1555.3,0.793004]
[1674159198952,10.41147131,1555.7,1555.2,19.38593]
[1674159199176,19.33712804,1555.7,1555.2,6.52585]
[1674159199342,22.62887563,1555.7,1555.2,0.096]
[1674159199550,2.60860047,1555.6,1555.1,17.94625]
[1674159199816,15.46582047,1555.6,1555.1,17.94625]
[1674159200022,15.47182047,1555.6,1555.1,17.94625]
[1674159200652,15.47182047,1555.6,1555.2,1.5]
[1674159200875,15.47182047,1555.6,1555.1,17.94625]
[1674159201349,0.67488767,1555.5,1555.1,11.5159]
[1674159201562,6.49690877,1555.4,1555.1,0.096]
[1674159201774,6.49690877,1555.4,1555.0,7.829]
[1674159201775,15.09221644,1555.4,1555.0,7.925]
[1674159202175,14.41732877,1555.4,1555.0,7.925]
[1674159202386,14.41732877,1555.4,1555.0,9.425]
[1674159202593,12.86484,1555.4,1555.0,9.425]
[1674159202825,12.86484,1555.4,1555.0,7.925]
[1674159203493,0.006,1555.4,1555.1,6.43037]
[1674159203723,8.6911,1555.5,1555.1,6.52637]
[1674159203857,8.2089,1555.5,1555.1,6.52637]
[1674159204535,8.2089,1555.5,1555.2,1.5]
[1674159205082,0.006,1555.5,1555.2,1.5]
[1674159205378,14.07425767,1555.6,1555.1,8.02637]
[1674159205379,7.59166767,1555.6,1555.1,8.02637]
[1674159205749,7.59166767,1555.6,1555.2,0.802637]
[1674159206647,8.6041244,1555.6,1555.2,0.802637]
[1674159206959,7.59166767,1555.6,1555.2,0.802637]
[1674159207135,8.6041244,1555.6,1555.2,0.802637]
[1674159207350,8.6041244,1555.6,1555.1,6.52637]
[1674159207740,8.6041244,1555.6,1555.1,8.02637]
[1674159208641,0.67488767,1555.5,1555.1,8.02637]
[1674159208802,0.67488767,1555.5,1555.1,6.52637]
[1674159209535,0.67129961,1555.5,1555.1,6.52637]
[1674159210052,7.10013961,1555.5,1555.1,6.52637]
[1674159210265,7.44729673,1555.5,1555.1,0.096]
[1674159210507,7.44729673,1555.5,1555.0,14.25957]
[1674159210508,13.87613673,1555.5,1555.0,14.35557]
[1674159210726,19.70402153,1555.5,1555.0,7.925]
[1674159211348,21.0512768,1555.5,1555.0,7.925]
[1674159211798,19.70402153,1555.5,1555.0,7.925]
[1674159215687,12.85942,1555.3,1555.0,0.096]
[1674159215877,12.85942,1555.3,1554.9,1.5]
[1674159215878,16.15716759,1555.3,1554.9,1.5]
[1674159216527,16.15716759,1555.3,1554.8,13.0479]
[1674159216681,18.76646656,1555.3,1554.8,14.72298101]
[1674159216891,18.76646656,1555.3,1554.8,13.22298101]
[1674159217106,20.25146656,1555.3,1554.8,8.5479]
[1674159217313,2.02514666,1555.2,1554.8,8.5479]
[1674159217606,14.88558666,1555.2,1554.8,8.5479]
[1674159217770,1.485,1555.1,1554.8,8.5479]
[1674159218264,6.43086,1555.0,1554.8,8.5479]
[1674159218462,6.43686,1555.0,1554.8,0.096]
[1674159218676,8.521189,1555.0,1554.7,11.3829]
[1674159218887,6.43686,1555.0,1554.7,11.3829]
[1674159219162,6.43686,1555.0,1554.7,12.8829]
[1674159219474,0.006,1555.0,1554.7,12.8829]
[1674159219650,6.43667,1555.1,1554.7,12.8829]
[1674159219995,0.006,1555.1,1554.7,19.31496]
[1674159220157,13.34861,1555.2,1554.8,1.5]
[1674159220368,13.34861,1555.2,1554.8,7.93163]
[1674159220369,6.43606,1555.2,1554.8,7.93163]
[1674159220604,0.006,1555.2,1554.9,0.793163]
[1674159220825,0.006,1555.3,1554.9,0.793163]
[1674159221007,0.006,1555.4,1555.0,7.9948863]
[1674159221236,17.44756271,1555.5,1555.0,16.0217463]
[1674159221237,16.91136271,1555.5,1555.0,16.0217463]
[1674159221574,16.2381,1555.5,1555.1,1.01089764]
[1674159221796,7.10836271,1555.5,1555.1,1.01089764]
[1674159221940,6.4351,1555.5,1555.1,2.51089764]
[1674159222469,7.10836271,1555.5,1555.1,1.01089764]
[1674159222891,7.10836271,1555.5,1555.1,2.51089764]
[1674159224259,6.4351,1555.5,1555.1,1.01089764]
[1674159224679,13.53746271,1555.5,1555.1,1.01089764]
[1674159226197,13.53746271,1555.5,1555.1,2.51089764]
[1674159226459,12.8642,1555.5,1555.1,2.51089764]
[1674159226627,13.53746271,1555.5,1555.1,1.01089764]
[1674159229219,19.71277165,1555.5,1555.0,26.1629863]
[1674159229565,13.53746271,1555.5,1555.1,1.5]
[1674159229778,12.8642,1555.5,1555.1,1.5]
[1674159230675,13.53746271,1555.5,1555.1,1.5]
[1674159230884,13.53746271,1555.5,1555.0,26.1629863]
[1674159231098,13.53746271,1555.5,1555.1,1.5]
[1674159231947,13.53746271,1555.5,1555.0,26.08367]
[1674159232363,13.53746271,1555.5,1555.0,26.08109532]
[1674159232782,13.53746271,1555.5,1555.1,1.5]
[1674159233563,13.53746271,1555.5,1555.0,27.75600087]
[1674159234017,13.53746271,1555.5,1555.0,26.08109532]
[1674159235117,13.53746271,1555.5,1555.0,27.75600882]
[1674159235959,13.53746271,1555.5,1555.1,1.5]
[1674159236481,12.8642,1555.5,1555.1,1.5]
[1674159236693,13.53746271,1555.5,1555.1,1.5]
[1674159236953,12.8642,1555.5,1555.1,1.5]
[1674159237325,13.53746271,1555.5,1555.1,1.5]
[1674159237532,12.8642,1555.5,1555.1,1.5]
[1674159238100,13.53746271,1555.5,1555.1,1.5]
[1674159238424,6.4351,1555.5,1555.1,1.5]
[1674159239021,7.10836271,1555.5,1555.1,1.5]
[1674159240636,6.4351,1555.5,1555.1,1.5]
[1674159241417,7.10477465,1555.5,1555.1,1.5]
[1674159241627,6.43151194,1555.5,1555.1,1.5]
[1674159241879,7.10477465,1555.5,1555.1,1.5]
[1674159242103,6.43151194,1555.5,1555.0,33.99668532]
[1674159242291,7.10477465,1555.5,1555.0,33.99668532]
[1674159243148,7.10477465,1555.5,1555.1,1.5]
[1674159243683,0.006,1555.5,1555.1,10.72163895]
[1674159243901,8.0833,1555.6,1555.2,2.18862694]
[1674159244204,8.0833,1555.6,1555.3,1.5]
[1674159244411,0.006,1555.6,1555.3,1.5]
[1674159244630,1.15536271,1555.7,1555.4,0.15]
[1674159245220,1.22136271,1555.8,1555.4,17.78509759]
[1674159245429,1.68571944,1555.9,1555.4,14.58935]
[1674159245639,0.67326271,1555.8,1555.5,1.5]
[1674159245976,7.43979673,1555.9,1555.5,1.5]
[1674159245977,0.73926271,1555.9,1555.5,16.48960305]
[1674159246185,9.30205673,1556.0,1555.5,16.58560305]
[1674159246186,8.3556,1556.0,1555.5,16.58560305]
[1674159246357,8.2956,1556.0,1555.6,7.50038389]
[1674159246575,8.96886271,1556.0,1555.6,7.59638389]
[1674159246819,0.30262377,1555.8,1555.6,7.59638389]
[1674159249434,0.30262377,1555.8,1555.6,9.09638389]
[1674159249854,0.30262377,1555.8,1555.6,7.59638389]
[1674159250965,0.30262377,1555.8,1555.6,9.09638389]
[1674159251348,0.30262377,1555.8,1555.6,7.59638389]
[1674159252912,0.30262377,1555.8,1555.6,9.09638389]
[1674159253112,0.30262377,1555.8,1555.7,0.75963839]
[1674159253529,0.30262377,1555.8,1555.7,2.25963839]
[1674159253792,0.30262377,1555.8,1555.7,0.75963839]
[1674159254584,0.30262377,1555.8,1555.7,2.25963839]
[1674159254849,7.8736,1556.0,1555.7,2.25963839]
[1674159255072,7.8136,1556.0,1555.7,0.75963839]
[1674159255301,0.006,1556.0,1555.7,0.75963839]
[1674159255471,6.63699833,1556.1,1555.7,0.75963839]
[1674159255472,6.58299833,1556.1,1555.7,0.75963839]
[1674159255848,7.25626104,1556.1,1555.7,0.75963839]
[1674159256091,7.73826104,1556.1,1555.7,0.75963839]
[1674159256491,7.06499833,1556.1,1555.7,0.75963839]
[1674159256723,7.73826104,1556.1,1555.7,0.75963839]
[1674159257441,7.73826104,1556.1,1555.6,25.45965]
[1674159257442,0.67326271,1556.0,1555.6,25.45965]